Cogmind - Beta 10.2 @@@ ROGUE MODE // 2020.11.16 @ 01:43:06 // Halloween2020/ForbiddenLore Player: ptdel Result: Self-destructed Performance ------------- Evolutions (0) 0 Regions Visited (4) 800 Robots Destroyed (24) 120 Value Destroyed (620) 620 Prototype IDs (0) 0 Alien Tech Used (0) 0 Bonus (300) 300 TOTAL SCORE: 1840 Bonus ------- Aligned with FarCom 300 Cogmind --------- Core Integrity 56/250 Matter 266/300 Energy 100/100 System Corruption 0% Temperature Cool (455) Movement Core (550) Ox10 Location -9/Mines Parts ------- > --- POWER (1) -------- (None) > --- PROPULSION (2) --- (None) > --- UTILITY (2) ------ Large Storage Unit Large Storage Unit > --- WEAPON (2) ------- (None) > --- INVENTORY (16) --- Light Ion Engine Light Ion Engine Light Nuclear Core Light Nuclear Core Flight Unit Flight Unit VTOL Module VTOL Module VTOL Module VTOL Module Faulty Experimental Sensor Array Skeleton Box Grenade Launcher Peak State ------------ > --- POWER ------------ Light Ion Engine > --- PROPULSION ------- Light Treads Light Treads > --- UTILITY ---------- Large Storage Unit Large Storage Unit > --- WEAPON ----------- Assault Rifle Light Assault Rifle > --- INVENTORY -------- Light Ion Engine Light Nuclear Core Light Nuclear Core Flight Unit Flight Unit VTOL Module VTOL Module VTOL Module VTOL Module Experimental Sensor Array Beam Cannon Beam Cannon Light Assault Rifle Grenade Launcher Datajack Stasis Trap [Rating: 10] Favorites ----------- Power Ion Engine Engine Ion Engine Propulsion Light Treads Treads Light Treads Utility Large Storage Unit Storage Large Storage Unit Weapon Light Assault Rifle Energy Cannon Beam Cannon Ballistic Gun Light Assault Rifle Build | -11 -10 -10 -10 -9 ------- Run | Scr Mat Min Exi Min Slots Evolved . | . . . . . Power . | . . . . . Propulsion . | . . . . . Utility . | . . . . . Weapon . | . . . . . Parts Attached 15 | 6 4 2 . 3 Power 2 | 1 . 1 . . Engine 2 | 1 . 1 . . Core . | . . . . . Reactor . | . . . . . Propulsion 3 | 2 . 1 . . Treads 3 | 2 . 1 . . Leg . | . . . . . Wheel . | . . . . . Hover . | . . . . . Flight . | . . . . . Utility 5 | 1 4 . . . Device . | . . . . . Storage 5 | 1 4 . . . Processor . | . . . . . Hackware . | . . . . . Protection . | . . . . . Artifact . | . . . . . Weapon 5 | 2 . . . 3 Energy Gun . | . . . . . Energy Cannon 2 | . . . . 2 Ballistic Gun 3 | 2 . . . 1 Ballistic Cannon . | . . . . . Launcher . | . . . . . Special Weapon . | . . . . . Impact Weapon . | . . . . . Slashing Weapon . | . . . . . Piercing Weapon . | . . . . . Special Melee Weapon . | . . . . . Unidentified Prototypes . | . . . . . Parts Lost 7 | . . 2 . 5 Power 2 | . . 1 . 1 Propulsion 3 | . . 1 . 2 Utility . | . . . . . Weapon 2 | . . . . 2 Highest Loss Streak 5 | . . 1 . 5 Average Slot Usage (%) 98 | . 99 96 100 98 Engine 13 | . 14 13 14 14 Treads 26 | . 28 25 28 27 Storage 27 | . 27 28 28 28 Energy Cannon 1 | . . . . 12 Ballistic Gun 26 | . 28 28 28 15 Naked Turns . | . . . . . Heaviest Build 41 | 12 40 40 38 41 Greatest Support 40 | 40 40 40 40 40 Greatest Overweight (x) 2 | . . 1 . 2 Average Overweight (x) . | . . . . . Largest Inventory Capacity 16 | 6 16 16 16 16 Average Capacity 14 | 5 14 16 16 16 Most Carried 16 | 4 15 16 16 16 Average Carried 13 | 1 11 15 15 14 Final Capacity 16 | 6 16 16 16 16 Final Carried 16 | 2 15 16 16 13 Class Distribution -------------------- 100% | Mutant Dominant Class ---------------- Mutant | -10/Materials Mutant | -10/Mines Mutant | -10/Exiles Mutant | -9/Mines Resources | -11 -10 -10 -10 -9 ----------- Run | Scr Mat Min Exi Min Matter Collected 661 | 149 331 111 . 70 Remotely . | . . . . . Salvage Created 790 | . 512 186 . 92 Parts 43 | . 23 6 . 14 Haulers Intercepted 1 | . 1 . . . Recyclers Shooed . | . . . . . Parts Field Recycled . | . . . . . Retrieved Matter . | . . . . . Parts Self-Destructed . | . . . . . Prevented . | . . . . . Kills | -11 -10 -10 -10 -9 ------- Run | Scr Mat Min Exi Min Combat Hostiles Destroyed 23 | . 13 4 . 6 Guns 23 | . 13 4 . 6 Classes Destroyed 3 | . 3 . . . Hauler 1 | . 1 . . . Swarmer 9 | . 3 . . 6 Grunt 14 | . 10 4 . . Best Kill Streak 6 | . 4 1 . 6 Combat Bots Only 6 | . 3 1 . 6 Max Kills in Single Turn 1 | . 1 1 . 1 Gunslinging . | . . . . . Exploded . | . . . . . Melee . | . . . . . Uniques/NPCs Destroyed . | . . . . . Combat | -11 -10 -10 -10 -9 -------- Run | Scr Mat Min Exi Min Damage Taken 1195 | . 423 235 . 537 Core 194 | . 78 32 . 84 Absorbed by Shields . | . . . . . Core Remaining (%) 100 | 100 . . . . Volleys Fired 85 | . 49 21 . 15 Largest 2 | . 2 2 . 2 Hottest 120 | . 40 40 . 120 Shots Fired 169 | . 98 42 . 29 Gun 160 | . 98 42 . 20 Cannon 9 | . . . . 9 Launcher . | . . . . . Special . | . . . . . Kinetic 160 | . 98 42 . 20 Thermal 9 | . . . . 9 Explosive . | . . . . . Electromagnetic . | . . . . . Robot Hit Streak 15 | . 15 11 . 4 Robot Miss Streak 2 | . 2 2 . 2 Penetration Max . | . . . . . Secondary Targets . | . . . . . Shots Hit Robots 111 | . 64 31 . 16 Core Hits 49 | . 29 13 . 7 Critical Hits 2 | . 2 . . . Critical Kills . | . . . . . Critical Parts Destroyed 2 | . 2 . . . Melee Attacks . | . . . . . Impact . | . . . . . Slashing . | . . . . . Piercing . | . . . . . Sneak Attacks . | . . . . . Combat Hostiles . | . . . . . Follow-up Attacks . | . . . . . Damage Inflicted 1182 | . 671 303 . 208 Guns 1072 | . 666 303 . 103 Cannons 105 | . . . . 105 Explosions . | . . . . . Melee . | . . . . . Ramming 5 | . 5 . . . Kinetic 1072 | . 666 303 . 103 Thermal 105 | . . . . 105 Explosive . | . . . . . Electromagnetic . | . . . . . Impact . | . . . . . Slashing . | . . . . . Piercing . | . . . . . Highest Corruption . | . . . . . Average Corruption . | . . . . . Corruption Purged . | . . . . . Overload Shots . | . . . . . Overflow Damage 12 | . . . . 12 Projectiles 12 | . . . . 12 Explosions . | . . . . . Melee . | . . . . . Knockbacks . | . . . . . Impact . | . . . . . Kinetic . | . . . . . Secondary . | . . . . . Self-Inflicted Damage . | . . . . . Shots . | . . . . . Rammed 1 | . 1 . . . Targets Rammed 1 | . 1 . . . Kicked . | . . . . . Crushed . | . . . . . Highest Temperature 455 | . 18 9 . 455 Average Temperature 66 | . 8 7 . 201 Received Heat Transfer 617 | . 165 132 . 320 Effects 1 | . . . . 1 Matter Decay 1 | . . . . 1 Siege Activations . | . . . . . Robots Corrupted . | . . . . . Combat Hostiles . | . . . . . Parts Fried . | . . . . . Impact Corruptions . | . . . . . Robots Melted . | . . . . . Combat Hostiles . | . . . . . Parts Melted . | . . . . . Heat Transferred 222 | . . . . 222 Parts Sabotaged . | . . . . . Parts Stolen . | . . . . . Parts Stripped . | . . . . . Power Chain Reactions . | . . . . . Missiles Intercepted . | . . . . . Alert | -11 -10 -10 -10 -9 ------- Run | Scr Mat Min Exi Min Peak Influence 145 | . 145 114 . 140 Initial 49 | . . 49 . . Average 50 | . 63 35 . 75 Maximum Alert Level . | . . . . . Low Security (%) 100 | 100 100 100 . 100 Level 1 . | . . . . . Level 2 . | . . . . . Level 3 . | . . . . . Level 4 . | . . . . . Level 5 . | . . . . . High Security . | . . . . . Max Security . | . . . . . Squads Dispatched 4 | . 4 . . . Investigation 1 | . 1 . . . Extermination . | . . . . . Reinforcement 3 | . 3 . . . Assault . | . . . . . Garrison . | . . . . . Intercept . | . . . . . Construction Impeded . | . . . . . Haulers Reinforced . | . . . . . Stealth | -11 -10 -10 -10 -9 --------- Run | Scr Mat Min Exi Min Distress Signals 1 | . 1 . . . Communications Jammed . | . . . . . Distress Signals . | . . . . . Times Spotted 43 | . 20 5 . 18 Peak Tracking Total 14 | . 4 2 . 14 Tactical Retreats 1 | . . 1 . . Traps | -11 -10 -10 -10 -9 ------- Run | Scr Mat Min Exi Min Traps Triggered 1 | . 1 . . . Indirectly . | . . . . . Trap Hack Attempts . | . . . . . Triggered . | . . . . . Disarmed . | . . . . . Reprogrammed . | . . . . . Reused . | . . . . . Traps Extracted . | . . . . . Installed . | . . . . . Triggered . | . . . . . Exploded 1 | . . . 1 . Machines | -11 -10 -10 -10 -9 ---------- Run | Scr Mat Min Exi Min Machines Disabled . | . . . . . Max in Single Turn . | . . . . . Machines Sabotaged . | . . . . . Garrisons Compromised . | . . . . . Overloaded Fab Kills . | . . . . . Fab Network Shutdowns . | . . . . . Hacking | -11 -10 -10 -10 -9 --------- Run | Scr Mat Min Exi Min Machines Accessed 6 | . 6 . . . Terminals 6 | . 6 . . . Fabricators . | . . . . . Repair Stations . | . . . . . Recycling Units . | . . . . . Scanalyzers . | . . . . . Garrison Access . | . . . . . Total Hacks 13 | . 13 . . . Successful 2 | . 2 . . . Failed 11 | . 11 . . . Catastrophic 6 | . 6 . . . Database Lockouts . | . . . . . Manual 12 | . 11 . 1 . Terminals 13 | . 13 . . . Fabricators . | . . . . . Repair Stations . | . . . . . Recycling Units . | . . . . . Scanalyzers . | . . . . . Garrison Access . | . . . . . Terminal Hacks 2 | . 2 . . . Record 1 | . 1 . . . Branch Access Points 1 | . 1 . . . Fabricator Hacks . | . . . . . Repair Station Hacks . | . . . . . Recycling Unit Hacks . | . . . . . Scanalyzer . | . . . . . Garrison Access Hacks . | . . . . . Unauthorized Hacks . | . . . . . Terminals . | . . . . . Fabricators . | . . . . . Repair Stations . | . . . . . Recycling Units . | . . . . . Scanalyzers . | . . . . . Garrison Access . | . . . . . Data Cores Recovered . | . . . . . Used . | . . . . . Hacking Detections 5 | . 5 . . . Full Trace Events 1 | . 1 . . . Feedback Events . | . . . . . Feedback Blocked . | . . . . . Robot Schematics Acquired . | . . . . . Robots Built . | . . . . . Matter . | . . . . . Time . | . . . . . Total Robot Build Rating . | . . . . . Part Schematics Acquired . | . . . . . Parts Built . | . . . . . Matter . | . . . . . Time . | . . . . . Total Part Build Rating . | . . . . . Parts Repaired . | . . . . . Time . | . . . . . Parts Recycled . | . . . . . Recycled Matter . | . . . . . Retrieved Matter . | . . . . . Retrieved Components . | . . . . . Parts Scanalyzed . | . . . . . Part Schematics Acquired . | . . . . . Parts Damaged . | . . . . . Bothacking | -11 -10 -10 -10 -9 ------------ Run | Scr Mat Min Exi Min Used RIF Installer . | . . . . . Robots Hacked . | . . . . . Non-combat . | . . . . . Combat . | . . . . . Robot Hacks Applied . | . . . . . Relay Couplers Released . | . . . . . Robots Rewired . | . . . . . Allies Hacked . | . . . . . Hacks Repelled . | . . . . . Allies | -11 -10 -10 -10 -9 -------- Run | Scr Mat Min Exi Min Total Allies 2 | . . 2 . . Largest Group 2 | . . 2 2 . Highest-Rated Group 43 | . . 43 43 . Highest-Rated Ally 31 | . . 31 31 . Total Orders . | . . . . . Ally Attacks . | . . . . . Total Damage . | . . . . . Kills . | . . . . . Allies Corrupted . | . . . . . Allies Melted . | . . . . . Intel | -11 -10 -10 -10 -9 ------- Run | Scr Mat Min Exi Min Robot Analysis Total . | . . . . . Derelict Logs Recovered 3 | . . 2 . 1 Drone Launches . | . . . . . Drone Recoveries . | . . . . . Exploration | -11 -10 -10 -10 -9 ------------- Run | Scr Mat Min Exi Min Turns Passed 2844 | 115 1086 1012 341 290 Spaces Moved 1499 | 63 523 559 213 141 Core 10 | 10 . . . . Treads 1489 | 53 523 559 213 141 Legs . | . . . . . Wheels . | . . . . . Hover . | . . . . . Flight . | . . . . . Fastest Speed 50 | 50 160 160 160 160 Average Speed 161 | 142 160 163 160 169 Slowest Speed 200 | 160 160 180 160 200 Overloaded Moves . | . . . . . Propulsion Burnouts . | . . . . . Robots Hopped . | . . . . . Cave-ins Triggered . | . . . . . Exploration Rate (%) 56 | 4 91 88 61 40 Regions Visited 4 Branch Regions 3 Pre-discovered Areas 2 | . . 2 . . Known Exits Taken 1 | . 1 . . . Unknown Exits Taken 3 | 1 . 1 1 . Scrap Searched 3 | . . 2 . 1 Spaces Dug . | . . . . . Terrain Destroyed . | . . . . . Melee . | . . . . . Projectile . | . . . . . AOE . | . . . . . Terrain Rammed . | . . . . . Walls Destroyed . | . . . . . Machines Disabled . | . . . . . Actions | -11 -10 -10 -10 -9 --------- Run | Scr Mat Min Exi Min Total 1774 | 88 686 620 214 166 Wait 128 | 12 80 36 . . Move 1495 | 62 522 558 212 141 Hop . | . . . . . Pick Up 36 | 8 22 3 1 2 Fast Attach . | . . . . . Attach 9 | 6 1 2 . . Detach . | . . . . . Swap 6 | . 3 . . 3 Drop 14 | . 8 . 1 5 Fire 85 | . 49 21 . 15 Melee . | . . . . . Ram . | . . . . . Kick . | . . . . . Crush 1 | . 1 . . . Escape Stasis . | . . . . . Rewire . | . . . . . Trap . | . . . . . Miscellaneous . | . . . . . Route ------- -11/Scrapyard -10/Materials (discovered 4 exits: [*Mat x2] / *Min x2) -10/Mines (discovered 3 exits: [*Mat x2] / *Exi) -10/Exiles -9/Mines History --------- Turn | Location | Event 5 | -11/Scrapyard | Discovered new exit (range 13) 116 | -11/Scrapyard | Entered Materials 300 | -10/Materials | Build established: Mutant 529 | -10/Materials | Discovered new exit (range 16) 603 | -10/Materials | Discovered new exit (range 14) 784 | -10/Materials | Discovered new exit (range 15) 888 | -10/Materials | Discovered new exit (range 3) 1125 | -10/Materials | Identified exit to Mines 1202 | -10/Materials | Entered Mines 1375 | -10/Mines | Discovered new exit (range 5) 1720 | -10/Mines | Found a hidden stash of uninstalled traps 1817 | -10/Mines | Learned location of Storage (-8) 1900 | -10/Mines | Found a damaged Exp. Sensor Array with a note attached 1903 | -10/Mines | Found Prototype Device 1929 | -10/Mines | Learned 2 Materials zone layouts 1945 | -10/Mines | Learned location of Zion (-7) 2018 | -10/Mines | Discovered new exit (range 3) 2194 | -10/Mines | Deemed a non-threat by the Exiles lab entrance 2194 | -10/Mines | Discovered new exit (range 5) 2214 | -10/Mines | Entered Exiles 2214 | -10/Exiles | Accompanied by 2 allies 2244 | -10/Exiles | Led the pair of lost Derelicts to a safe place 2256 | -10/Exiles | Met 8R-AWN 2283 | -10/Exiles | Met EX-HEX 2331 | -10/Exiles | Met EX-BIN 2354 | -10/Exiles | Aligned with FarCom system 2355 | -10/Exiles | Given EX-Vault access code 2395 | -10/Exiles | Opened EX-Vault 2402 | -10/Exiles | Found Prototype Device 2435 | -10/Exiles | Warned to stay clear of 0b10 Research branches 2460 | -10/Exiles | Exiles lab attacked by MAIN.C 2533 | -10/Exiles | Discovered new exit (range 14) 2555 | -10/Exiles | Left Exiles lab with Skeleton Box 2555 | -10/Exiles | Entered Mines 2661 | -9/Mines | Learned 4 Materials zone layouts 2677 | -9/Mines | Core integrity fell below 50% 2814 | -9/Mines | Assembled infested the area 2845 | -9/Mines | Self-destructed Last Messages --------------- 02705_ R-06 Scavenger collects Lgt. Ion Engine. 02707_ Dropped Datajack. 02707_ Dropped Beam Cannon. 02708_ Acquired Lgt. Ion Engine. 02710_ Dropped Assault Rifle. 02712_ Acquired Beam Cannon. 02716_ Dropped Lgt. Assault Rifle. 02723_ Acquired 18 matter. 02726_ Acquired 13 matter. 02728_ Acquired 6 matter. 02782_ K-01 Serf collects debris. 02814_ ALERT: Infestation in the mines, dispatching Demolisher response squad. 02829_ Lgt. Treads destroyed. 02840_ Overheating: Matter decay (-54). 02840_ Beam Cannon destroyed. 02841_ Lgt. Treads destroyed. 02843_ Destroyed Asb. Hover Unit. 02844_ Beam Cannon destroyed. 02844_ Lgt. Ion Engine destroyed. Map ----- +----------------------------------------------------+ | ?????????????# #########???????? | | ?????????????# #???## ##??????? | | ?????????????# #??## ##?????? | | ?????????????# #?## #?????? | | ######### ### #?????? | | #?????? | | ?# #?????? | | ??# ######## #?????? | | ?????????????## #?????? | | ??????????????## #?????? | | ???????????????# ##?????? | | ???????????????# #######??????? | | ???????????????# ##???????????? | | ??????????????## ###?????????? | | ?????????????## ##????????? | | ????????????## ##???????? | | ????????????# """ ###?????? | | ????????????# """ ##????? | | ????????????# """ #????? | | ???????# #????? | | ?????????##### # ##????? | | ?????????????# # ##a #?????? | | ?????????????# # ##aa##?????? | | ????????????# ## % aa##?????? | | ????????????# ?# ##aaa####??? | | ????????????# #?# ### @ #??? | | ????????????###??# #?## #?? | | ?????????????????# ???## #?? | | ?????????????????# ????## ##?? | | ?????????????????# ??????###??? | | ?????????????????#$ ???????????? | | ?????????????????? ????????????? | | ???????????????????????????????? | | ???????????????????????????????? | | ???????????????????????????????? | | ???????????????????????????????? | | ????????????????????d??????????? | | ???????????????????????????????? | | ???????????????????????????????? | | ???????????????????????????????? | | ???????????????????????????????? | | ???????????????????????????????? | | ???????????????????????????????? | | ???????????????????????????????? | | ???????????????????????????????? | | ???????????????????????????????? | | ???????????????????????????????? | | | | | | | +----------------------------------------------------+ Best States ------------- Heat Dissipation 25 Energy Generation 10 Energy Capacity 250 Matter Stores 300 Matter Capacity 300 Sight Range 16 Terrain Scan Density 10 Evasion (%) 50 Recoil Reduction 2 Item Schematics ----------------- None Robot Schematics ------------------ None Fabricated ------------ Nothing Alien Tech Used ----------------- None Achievements -------------- None Challenges ------------ None Game ------ Seed GaussAntigravMeganuke Manual? 0 Play Time 00:21:19 Cumulative 48.8 hours Start 2020.11.16 @ 01:17:49 End 2020.11.16 @ 01:43:06 Sessions 1 Manual Loads 0 Difficulty Rogue Special Mode Halloween2020/ForbiddenLore Game No. 65 Rogue 49 Adventurer 15 Explorer 1 Win Type - Total 0 Types 0/0/0/0/0/0/0/0/0 Lore% 22 Gallery% 37 Achievement% 33 Wizard Run 0 Options --------- ASCII 0 Keyboard 0 Movement Numpad Keybinds 0 Fullscreen 2 Font 18/SmallcapsGlow Map View 76x50 Tactical HUD 1 Map Filters NONE Filters NONE Steam 1 RUN: 1edb8038-38c9-4225-8d9e-2c21463733a0